Cogmind - Beta 17 @@@ ROGUE MODE // 2026.08.04 @ 12:58:46 Player: Foongus0298 Result: Destroyed by S-27 Virus with Autogun Performance ------------- Evolutions (4) 2000 Regions Visited (6) 1200 Robots Destroyed (61) 305 Value Destroyed (2151) 2151 Prototype IDs (2) 40 Alien Tech Used (0) 0 Bonus (500) 500 TOTAL SCORE: 6196 Bonus ------- Entered DSFs 500 Cogmind --------- Core Integrity 0/850 Matter 11/300 Energy 99/100 System Corruption 9% Temperature Cool (0) Movement Core (50) Location -6/DSF Parts ------- > --- POWER (1) -------- (None) > --- PROPULSION (4) --- (None) > --- UTILITY (4) ------ (None) > --- WEAPON (6) ------- (None) > --- INVENTORY (5) ---- Deuterium Engine Nuclear Pulse Thruster Nuclear Pulse Thruster Nuclear Pulse Thruster Nuclear Pulse Thruster Peak State ------------ > --- POWER ------------ Improved Deuterium Engine > --- PROPULSION ------- Advanced Treads Advanced Treads Advanced Treads > --- UTILITY ---------- Large Storage Unit Improved Signal Interpreter Hardened Medium Armor Plating > --- WEAPON ----------- High-powered Shotgun Flak Gun Advanced Assault Cannon Advanced Assault Cannon Gauss Cannon Powered Hammer > --- INVENTORY -------- Improved Ion Engine Deuterium Engine Light Treads Light Treads Advanced Treads Advanced Treads Improved Cooling System Improved Sensor Array Matter Filter Hardened Light Armor Plating Hardened Light Armor Plating Hardened Medium Armor Plating Hacking Suite High-powered Tractor Beam Improved Datajack [Rating: 47] Favorites ----------- Power Ion Engine Engine Ion Engine Power Core Light Nuclear Core Propulsion Advanced Treads Treads Advanced Treads Leg Carbon-fiber Leg Wheel Compact Wheel Hover Unit Linear Gravjet Flight Unit Nuclear Pulse Thruster Utility Large Storage Unit Device Improved Sensor Array Storage Large Storage Unit Processor Improved Signal Interpreter Protection Light Armor Plating Weapon Gauss Cannon Energy Gun Lightning Gun Energy Cannon Heavy Ion Cannon Ballistic Gun Assault Rifle Ballistic Cannon Gauss Cannon Launcher Grenade Launcher Impact Weapon Powered Hammer Build | -11 -10 -9 -8 -7 -6 -6 ------- Run | Yrd Mat Mat Mat Fac Fac DSF Slots Evolved 8 | . . 2 2 2 2 . Power . | . . . . . . . Propulsion 2 | . . 1 . . 1 . Utility 2 | . . 1 . . 1 . Weapon 4 | . . . 2 2 . . Parts Attached 67 | 4 5 10 21 23 1 3 Power 9 | 1 1 1 4 2 . . Engine 7 | 1 1 1 2 2 . . Core 2 | . . . 2 . . . Reactor . | . . . . . . . Propulsion 22 | . 2 2 8 6 1 3 Treads 12 | . 2 1 2 6 1 . Leg 5 | . . 1 4 . . . Wheel 2 | . . . 2 . . . Hover 2 | . . . . . . 2 Flight 1 | . . . . . . 1 Utility 17 | 1 2 5 4 5 . . Device 7 | . 1 1 3 2 . . Storage 3 | 1 1 1 . . . . Processor 2 | . . . 1 1 . . Hackware . | . . . . . . . Protection 5 | . . 3 . 2 . . Artifact . | . . . . . . . Weapon 19 | 2 . 2 5 10 . . Energy Gun 2 | . . . . 2 . . Energy Cannon 2 | . . . 2 . . . Ballistic Gun 8 | 2 . 2 2 2 . . Ballistic Cannon 4 | . . . . 4 . . Launcher 1 | . . . 1 . . . Special Weapon . | . . . . . . . Impact Weapon 2 | . . . . 2 . . Slashing Weapon . | . . . . . . . Piercing Weapon . | . . . . . . . Special Melee Weapon . | . . . . . . . Unidentified Prototypes 2 | . . . 2 . . . Parts Lost 31 | . . 4 14 3 . 10 Power 3 | . . . 2 . . 1 Propulsion 13 | . . 1 5 . . 7 Utility 4 | . . 2 1 . . 1 Weapon 11 | . . 1 6 3 . 1 Highest Loss Streak 10 | . . 3 7 3 . 10 To Critical Strikes 1 | . . . 1 . . . Average Backups 11 | 4 7 10 10 13 13 12 Power 1 | . 1 2 2 1 2 1 Propulsion 3 | 3 2 2 2 4 2 1 Utility 4 | . . 2 2 6 8 7 Weapon 1 | . 1 3 1 . 1 . Tool/Special . | . . . . . . . Unused Backups 28 | . . 3 2 14 . 9 Power 4 | . . 1 1 1 . 1 Propulsion 4 | . . . . 4 . . Utility 15 | . . . 1 7 . 7 Weapon 3 | . . 2 . . . 1 Tool/Special 2 | . . . . 2 . . Average Slot Usage (%) 85 | . 80 88 76 91 65 49 Engine 7 | . 14 11 6 4 6 4 Core 1 | . . . 1 2 . . Treads 20 | . 16 24 10 21 25 16 Leg 1 | . . . 7 . . . Device 6 | . 6 12 4 4 . . Storage 8 | . 14 11 9 7 6 5 Processor 4 | . . . 3 7 6 5 Protection 3 | . . 6 3 1 6 3 Energy Gun 3 | . . . . 6 . . Ballistic Gun 15 | . 28 22 21 10 . . Ballistic Cannon 6 | . . . . 12 6 4 Impact Weapon 3 | . . . . 6 6 5 Peak Build Rating 47 | 4 8 14 29 47 35 35 Average Rating 26 | 3 5 11 17 39 34 25 On Entrance 14 | . 4 8 10 12 32 35 Avg Prop Armor Cover (%) 5 | . . 5 11 2 . 12 Naked Turns 8 | . . . . . . 8 Heaviest Build 67 | 14 20 41 50 67 47 47 Greatest Support 88 | 3 40 60 45 66 88 88 Greatest Overweight (x) 4 | 4 4 . 3 1 . 2 Average Overweight (x) . | 2 1 . . . . . Largest Inventory Capacity 15 | 8 10 15 15 15 15 15 Average Capacity 13 | 7 9 11 15 15 15 13 Most Carried 15 | 6 10 11 15 15 14 14 Average Carried 11 | 4 7 10 10 13 13 11 Final Capacity 15 | 8 10 15 15 15 15 5 Final Carried 15 | 6 10 10 12 15 13 5 Class Distribution -------------------- 31% | Mutant 20% | Executioner 16% | Skirmisher 16% | Scavenger-Mutant 6% | Tank 5% | Scavenger-Tank Dominant Class ---------------- Mutant | -10/Materials Mutant | -9/Materials Scavenger-Tank | -8/Materials Executioner | -7/Factory Mutant | -6/Factory Mutant | -6/DSF Resources | -11 -10 -9 -8 -7 -6 -6 ----------- Run | Yrd Mat Mat Mat Fac Fac DSF Matter Collected 2130 | 233 161 479 397 860 . . Remotely . | . . . . . . . Salvage Created 2520 | . 216 652 631 1021 . . Parts 140 | . 18 40 28 54 . . Haulers Intercepted 4 | . 1 . 2 1 . . Recyclers Shooed . | . . . . . . . Parts Field Recycled . | . . . . . . . Retrieved Matter . | . . . . . . . Parts Self-Destructed . | . . . . . . . Prevented . | . . . . . . . Parts Restored . | . . . . . . . Kills | -11 -10 -9 -8 -7 -6 -6 ------- Run | Yrd Mat Mat Mat Fac Fac DSF Combat Hostiles Destroyed 49 | . 6 16 10 17 . . Guns 34 | . 6 16 6 6 . . Cannons 14 | . . . 3 11 . . AOE 1 | . . . 1 . . . Classes Destroyed 14 | . 3 3 3 5 . . Worker 1 | . . . 1 . . . Builder 1 | . . . . 1 . . Tunneler 1 | . . 1 . . . . Hauler 4 | . 1 . 2 1 . . Recycler 4 | . . . . 4 . . Operator 1 | . . . . 1 . . Swarmer 6 | . 2 4 . . . . Grunt 23 | . 4 7 6 6 . . Brawler 3 | . . 2 . 1 . . Duelist 1 | . . . 1 . . . Sentry 7 | . . 3 . 4 . . Hunter 4 | . . . 3 1 . . Programmer 4 | . . . . 4 . . Heavy 1 | . . . . 1 . . Best Kill Streak 5 | . 4 5 4 4 . . Combat Bots Only 5 | . 3 5 4 3 . . Max Kills in Single Turn 2 | . 1 1 1 2 . . Gunslinging . | . . . . . . . Exploded 1 | . . . 1 . . . Melee . | . . . . . . . Uniques/NPCs Destroyed . | . . . . . . . Combat | -11 -10 -9 -8 -7 -6 -6 -------- Run | Yrd Mat Mat Mat Fac Fac DSF Hostile Shots Fired 581 | . 24 81 169 157 . 150 Missed 174 | . 3 20 57 44 . 50 Hits 407 | . 21 61 112 113 . 100 Melee 13 | . . 8 4 1 . . Projectile 394 | . 21 53 108 112 . 100 Critical Strikes 12 | . . 1 6 5 . . Part Disruptions 3 | . . . . 1 . 2 Damage Taken 6612 | . 234 788 2169 1705 . 1716 Core 1502 | . 17 127 333 161 . 864 Absorbed by Shields 28 | . . . . 28 . . Regen/Repaired (Parts) 135 | . . 135 . . . . Core Remaining (%) 75 | 100 93 68 39 77 . . Volleys Fired 177 | 1 18 67 49 42 . . Largest 5 | 2 2 2 4 5 . . Hottest 193 | 40 40 43 175 193 . . Shots Fired 497 | 2 36 133 156 170 . . Gun 366 | 2 36 133 107 88 . . Cannon 127 | . . . 45 82 . . Launcher 4 | . . . 4 . . . Special . | . . . . . . . Kinetic 417 | 2 36 133 107 139 . . Thermal 59 | . . . 45 14 . . Explosive 4 | . . . 4 . . . Electromagnetic 17 | . . . . 17 . . Robot Hit Streak 12 | . 8 12 8 8 . . Robot Miss Streak 8 | 2 3 5 4 8 . . Penetration Max 1 | . . . . 1 . . Secondary Targets 1 | . 1 . . . . . Max Gunslinging Chain 1 | . 1 . . . . . Shots Hit Robots 299 | . 23 88 94 94 . . Core Hits 124 | . 11 29 35 49 . . Critical Kills 1 | . . . 1 . . . Critical Parts Destroyed 4 | . . 2 2 . . . Critical Strikes 9 | . . 2 3 4 . . Burn 2 | . . . . 2 . . Destroy 5 | . . 2 3 . . . Blast 2 | . . . . 2 . . Melee Attacks 3 | . . . . 2 1 . Impact 3 | . . . . 2 1 . Slashing . | . . . . . . . Piercing . | . . . . . . . Sneak Attacks . | . . . . . . . Combat Hostiles . | . . . . . . . Follow-up Attacks . | . . . . . . . Damage Inflicted 5350 | 12 321 1226 1610 2181 . . Guns 3074 | 12 321 1226 602 913 . . Cannons 2077 | . . . 810 1267 . . Explosions 177 | . . . 177 . . . Melee . | . . . . . . . Ramming 22 | . . . 21 1 . . Kinetic 4112 | 12 321 1226 602 1951 . . Thermal 935 | . . . 810 125 . . Explosive 177 | . . . 177 . . . Electromagnetic 104 | . . . . 104 . . Impact . | . . . . . . . Slashing . | . . . . . . . Piercing . | . . . . . . . Highest Corruption 9 | . . 9 . 3 . 9 Average Corruption 3 | . . 4 . 2 . 5 Corruption Purged . | . . . . . . . Corruption Blocked . | . . . . . . . Effects 36 | . . 17 . 16 . 3 Message Errors 16 | . . 7 . 8 . 1 Matter Fused 9 | . . 4 . 3 . 2 Heat Flow Errors 1 | . . . . 1 . . Energy Discharges 3 | . . 1 . 2 . . Data Loss (minor) 1 | . . 1 . . . . Data Loss (major) 1 | . . 1 . . . . Misfires 1 | . . 1 . . . . Alerts 1 | . . . . 1 . . Weapon Failures 3 | . . 2 . 1 . . Overload Shots . | . . . . . . . Overflow Damage 28 | . . . 12 16 . . Projectiles 28 | . . . 12 16 . . Explosions . | . . . . . . . Melee . | . . . . . . . Knockbacks 6 | . . . . 6 . . Impact . | . . . . . . . Kinetic 5 | . . . . 5 . . Secondary 1 | . . . . 1 . . Self-Inflicted Damage 40 | . . . 40 . . . Shots 1 | . . . 1 . . . Rammed 2 | . . . 1 1 . . Targets Rammed 2 | . . . 1 1 . . Kicked . | . . . . . . . Crushed . | . . . . . . . Highest Temperature 458 | . 2 39 458 432 . . Average Temperature 112 | . 2 13 138 135 . . Received Heat Transfer 1099 | . 99 228 486 223 . 63 Effects 10 | . . . 4 6 . . Shutdowns 1 | . . . . 1 . . Interference 6 | . . . 2 4 . . Matter Decay 1 | . . . 1 . . . Short Circuit 2 | . . . 1 1 . . Siege Activations . | . . . . . . . Martial Activations . | . . . . . . . Shielding Activations . | . . . . . . . Robots Disrupted . | . . . . . . . Combat Hostiles . | . . . . . . . Robots Corrupted . | . . . . . . . Combat Hostiles . | . . . . . . . Parts Fried . | . . . . . . . Impact Corruptions . | . . . . . . . Robots Melted . | . . . . . . . Combat Hostiles . | . . . . . . . Parts Melted 2 | . . . 1 1 . . Heat Transferred 1517 | . . . 1110 407 . . Parts Sabotaged . | . . . . . . . Parts Stolen . | . . . . . . . Parts Stripped . | . . . . . . . Power Chain Reactions . | . . . . . . . Alert | -11 -10 -9 -8 -7 -6 -6 ------- Run | Yrd Mat Mat Mat Fac Fac DSF Maximum Alert Level 1 | . . . . 1 . . Low Security (%) 99 | 100 100 100 100 98 100 100 Level 1 . | . . . . 1 . . Level 2 . | . . . . . . . Level 3 . | . . . . . . . Level 4 . | . . . . . . . Level 5 . | . . . . . . . High Security . | . . . . . . . Max Security . | . . . . . . . Peak Influence 218 | . 158 152 153 218 89 48 Initial 89 | . . 49 44 32 89 38 Average 61 | . 50 87 75 53 70 28 Influence Increases 1807 | . 213 489 416 653 6 30 Destroy 0b10 Robot/C 980 | . 120 320 200 340 . . Destroy 0b10 Robot/NC 60 | . 5 5 15 35 . . Destroy Leader 298 | . 42 80 44 132 . . Successful Hack 55 | . . 22 . 28 5 . Disable Machine 60 | . . 30 15 15 . . Destroy Structure 84 | . 1 2 52 28 1 . Partial Spotted 30 | . 15 . . 15 . . Lose Combat Pursuer 240 | . 30 30 90 60 . 30 Influence Decreases 1807 | . 95 501 450 541 135 85 Entered New Map 283 | . . 69 62 40 95 17 Time Decay 1246 | . 95 392 248 471 40 . Lost Part 278 | . . 40 140 30 . 68 Squads Dispatched 18 | . 2 2 2 10 1 1 Investigation 6 | . 1 2 . 2 1 . Extermination 4 | . . . . 4 . . Reinforcement 8 | . 1 . 2 4 . 1 Assault . | . . . . . . . Garrison . | . . . . . . . Intercept . | . . . . . . . Searches Triggered . | . . . . . . . Construction Impeded 1 | . . . 1 . . . Haulers Reinforced . | . . . . . . . Active Scanning Responses . | . . . . . . . Cargo Convoy Interrupts 1 | . . . . 1 . . Stealth | -11 -10 -9 -8 -7 -6 -6 --------- Run | Yrd Mat Mat Mat Fac Fac DSF Distress Signals 5 | . 2 2 . 1 . . Communications Jammed . | . . . . . . . Distress Signals . | . . . . . . . Times Spotted 104 | . 14 26 21 32 . 11 Peak Tracking Total 8 | . 6 5 7 4 . 8 Tactical Retreats 9 | . 1 2 2 3 . 1 Traps | -11 -10 -9 -8 -7 -6 -6 ------- Run | Yrd Mat Mat Mat Fac Fac DSF Traps Triggered 4 | . 1 2 . 1 . . Indirectly . | . . . . . . . Trap Hack Attempts . | . . . . . . . Triggered . | . . . . . . . Disarmed . | . . . . . . . Reprogrammed . | . . . . . . . Reused . | . . . . . . . Traps Extracted . | . . . . . . . Installed . | . . . . . . . Triggered . | . . . . . . . Machines | -11 -10 -9 -8 -7 -6 -6 ---------- Run | Yrd Mat Mat Mat Fac Fac DSF Machines Disabled 4 | . . 2 1 1 . . Max in Single Turn 1 | . . 1 1 1 . . Machines Repaired . | . . . . . . . Machines Dismantled . | . . . . . . . Machines Sabotaged . | . . . . . . . Overloaded Fab Kills . | . . . . . . . Hacking | -11 -10 -9 -8 -7 -6 -6 --------- Run | Yrd Mat Mat Mat Fac Fac DSF Machines Accessed 16 | . 3 5 1 6 1 . Terminals 14 | . 3 4 1 5 1 . Fabricators 1 | . . . . 1 . . Repair Stations 1 | . . 1 . . . . Recycling Units . | . . . . . . . Scanalyzers . | . . . . . . . Garrison Access . | . . . . . . . Total Hacks 51 | . 8 18 2 19 4 . Successful 19 | . 1 10 1 6 1 . Failed 31 | . 6 8 1 13 3 . Catastrophic 5 | . 2 2 . 1 . . Database Lockouts 1 | . 1 . . . . . Manual 36 | . 9 11 2 14 . . Terminals 41 | . 8 11 2 16 4 . Fabricators 3 | . . . . 3 . . Repair Stations 7 | . . 7 . . . . Recycling Units . | . . . . . . . Scanalyzers . | . . . . . . . Garrison Access . | . . . . . . . Terminal Hacks 14 | . 1 6 1 5 1 . Part Schematic 4 | . . 3 1 . . . Robot Analysis 8 | . 1 3 . 4 . . Open DSF 1 | . . . . . 1 . Alert Level 1 | . . . . 1 . . Fabricator Hacks 1 | . . . . 1 . . Load Schematic 1 | . . . . 1 . . Repair Station Hacks 4 | . . 4 . . . . Scan Component 2 | . . 2 . . . . Repair 2 | . . 2 . . . . Recycling Unit Hacks . | . . . . . . . Scanalyzer . | . . . . . . . Garrison Access Hacks . | . . . . . . . Unauthorized Hacks . | . . . . . . . Terminals . | . . . . . . . Fabricators . | . . . . . . . Repair Stations . | . . . . . . . Recycling Units . | . . . . . . . Scanalyzers . | . . . . . . . Garrison Access . | . . . . . . . Data Cores Recovered . | . . . . . . . Used . | . . . . . . . Hacking Detections 16 | . 3 5 1 6 1 . Full Trace Events 5 | . . 2 . 2 1 . Feedback Events . | . . . . . . . Feedback Blocked . | . . . . . . . Robot Schematics Acquired . | . . . . . . . Robots Built . | . . . . . . . Authchips . | . . . . . . . Time . | . . . . . . . Total Robot Build Rating . | . . . . . . . Part Schematics Acquired 3 | . . 2 1 . . . Parts Built . | . . . . . . . Authchips . | . . . . . . . Time . | . . . . . . . Total Part Build Rating . | . . . . . . . Part Studies Acquired . | . . . . . . . Parts Repaired 2 | . . 2 . . . . Time 52 | . . 52 . . . . Parts Recycled . | . . . . . . . Recycled Matter . | . . . . . . . Retrieved Matter . | . . . . . . . Retrieved Components . | . . . . . . . Parts Scanalyzed . | . . . . . . . Part Schematics Acquired . | . . . . . . . Parts Damaged . | . . . . . . . Bothacking | -11 -10 -9 -8 -7 -6 -6 ------------ Run | Yrd Mat Mat Mat Fac Fac DSF Used RIF Installer . | . . . . . . . Robots Hacked . | . . . . . . . Non-combat . | . . . . . . . Combat . | . . . . . . . Robot Hacks Applied . | . . . . . . . Relay Couplers Released . | . . . . . . . Fabnet Peak Effective % . | . . . . . . . Robots Rewired . | . . . . . . . Allies Hacked . | . . . . . . . Hacks Repelled . | . . . . . . . Allies | -11 -10 -9 -8 -7 -6 -6 -------- Run | Yrd Mat Mat Mat Fac Fac DSF Total Allies . | . . . . . . . Largest Group . | . . . . . . . Highest-Rated Group . | . . . . . . . Highest-Rated Ally . | . . . . . . . Total Orders . | . . . . . . . Ally Attacks . | . . . . . . . Total Damage . | . . . . . . . Kills . | . . . . . . . Allies Corrupted . | . . . . . . . Allies Melted . | . . . . . . . Intel | -11 -10 -9 -8 -7 -6 -6 ------- Run | Yrd Mat Mat Mat Fac Fac DSF Active Infowar (turns) 2333 | . 187 586 119 1441 . . Sensors 982 | . . . . 982 . . Terrain 773 | . 187 586 . . . . T.N.C. 578 | . . . 119 459 . . Robot Analysis Total 8 | . 1 3 . 4 . . Derelict Logs Recovered . | . . . . . . . Drone Launches . | . . . . . . . Drone Recoveries . | . . . . . . . Exploration | -11 -10 -9 -8 -7 -6 -6 ------------- Run | Yrd Mat Mat Mat Fac Fac DSF Turns Passed 4295 | 106 398 931 548 2068 95 149 Spaces Moved 2065 | 48 162 389 248 1057 63 98 Core 122 | 48 59 . . . . 15 Treads 1761 | . 103 389 91 1052 63 63 Legs 56 | . . . 56 . . . Wheels 106 | . . . 101 5 . . Hover 10 | . . . . . . 10 Flight 10 | . . . . . . 10 Fastest Speed 36 | 50 160 160 115 115 145 36 Average Speed 163 | 191 192 160 144 166 145 139 Slowest Speed 320 | 250 250 160 320 240 145 305 Overloaded Moves . | . . . . . . . Propulsion Burnouts . | . . . . . . . Robots Hopped . | . . . . . . . Potential Cave-ins . | . . . . . . . Cave-ins Triggered . | . . . . . . . Exploration Rate (%) 34 | 4 41 39 30 32 2 91 Regions Visited 6 Branch Regions . Pre-discovered Areas . | . . . . . . . Known Exits Taken 2 | . . . . 1 1 . Unknown Exits Taken 4 | 1 1 1 1 . . . Scrap Searched . | . . . . . . . Spaces Dug 2 | . . . . 1 1 . Terrain Destroyed 84 | . . . 61 22 1 . Melee 2 | . . . . 1 1 . Projectile 35 | . . . 14 21 . . AOE 47 | . . . 47 . . . Terrain Rammed . | . . . . . . . Walls Destroyed . | . . . . . . . Machines Disabled . | . . . . . . . Actions | -11 -10 -9 -8 -7 -6 -6 --------- Run | Yrd Mat Mat Mat Fac Fac DSF Total 2624 | 59 211 568 346 1265 65 110 Wait 187 | 1 19 88 5 74 . . Move 2059 | 47 161 388 247 1056 62 98 Hop . | . . . . . . . Pick Up 53 | 6 6 4 7 25 . 5 Fast Attach 43 | 4 2 9 13 12 . 3 Attach 17 | . 2 1 8 5 1 . Detach 6 | . . . 5 1 . . Swap 25 | . 1 2 4 18 . . Drop 52 | . 2 9 7 29 1 4 Fire 177 | 1 18 67 49 42 . . Melee 3 | . . . . 2 1 . Ram 1 | . . . 1 . . . Kick . | . . . . . . . Crush 1 | . . . . 1 . . Escape Stasis . | . . . . . . . Rewire . | . . . . . . . Trap . | . . . . . . . Miscellaneous . | . . . . . . . Route ------- -11/Scrapyard -10/Materials (discovered 3 exits: *Mat / [*Min x2]) -9/Materials (discovered 2 exits: *Mat x2) -8/Materials -7/Factory -6/Factory -6/DSF (discovered 1 exit: [*Fac]) History --------- Turn | Location | Event 2 | -11/Scrapyard | Met Revision 17 6 | -11/Scrapyard | Discovered new exit (range 15) 107 | -11/Scrapyard | Entered Materials 278 | -10/Materials | Discovered new exit (range 6) 302 | -10/Materials | Build established: Mutant 438 | -10/Materials | Discovered new exit (range 5) 458 | -10/Materials | Discovered new exit (range 16) 490 | -10/Materials | Central database locked down 505 | -10/Materials | Entered another Materials area 505 | -9/Materials | Evolved 2 slots: Propulsion x1, Utility x1 820 | -9/Materials | Repaired Lgt. Treads 847 | -9/Materials | Repaired Lgt. Treads 863 | -9/Materials | Discovered new exit (range 14) 1308 | -9/Materials | Build established: Scavenger-Mutant 1313 | -9/Materials | Lost 3 parts (1n1u1w) 1376 | -9/Materials | Discovered new exit (range 9) 1436 | -9/Materials | Entered another Materials area 1436 | -8/Materials | Evolved 2 slots: Weapon x2 1643 | -8/Materials | Lost 4 parts (1n1u2w) 1922 | -8/Materials | Core integrity fell below 50% 1970 | -8/Materials | Discovered new exit (range 15) 1974 | -8/Materials | Lost 7 parts (1p2n4w) 1984 | -8/Materials | Entered Factory 1984 | -7/Factory | Evolved 2 slots: Weapon x2 2753 | -7/Factory | Build established: Skirmisher 3430 | -7/Factory | Build established: Executioner 3651 | -7/Factory | Cargo convoy interrupted 4028 | -7/Factory | Discovered new exit (range 16) 4050 | -7/Factory | Identified exit to Factory 4052 | -7/Factory | Entered another Factory area 4052 | -6/Factory | Evolved 2 slots: Propulsion x1, Utility x1 4077 | -6/Factory | Lost 3 parts (3w) 4147 | -6/Factory | Identified exit to DSF 4147 | -6/Factory | Entered DSF 4178 | -6/DSF | Additional patrols routed to DSF 4270 | -6/DSF | Released all parts (3) 4277 | -6/DSF | Core integrity fell below 50% 4282 | -6/DSF | Discovered new exit (range 15) 4289 | -6/DSF | Core integrity fell below 20% 4296 | -6/DSF | Destroyed by S-27 Virus with Autogun Last Messages --------------- 04270_ Released Lrg. Storage Unit. 04270_ Released Imp. Signal Interpreter. 04270_ Released Powered Hammer. 04272_ Penetrated by Slug. 04272_ Acquired Linear Gravjet. 04272_ Slug penetrates Wall. 04274_ Acquired Linear Gravjet. 04275_ Penetrated by Slug. 04276_ Linear Gravjet destroyed. 04276_ Knocked back. 04279_ Linear Gravjet destroyed. 04279_ Knocked back. 04282_ EXIT=FOUND 04284_ Acquired Nuclear Pulse Thruster. 04286_ Dropped Lgt. Treads. 04286_ Dropped Hrd. Light Armor Plating. 04287_ Dropped Hacking Suite. 04287_ Dropped Hpw. Tractor Beam. 04288_ Acquired Nuclear Pulse Thruster. 04295_ Nuclear Pulse Thruster destroyed. Map ----- +----------------------------------------------------+ | ????????????????????### % ### #! | | ????????????????????#!]% ###### | | ????????????????????#!!!! #????? | | ????????????????????#*=!/ #????? | | ????????????????????##!% ###????? | | ????????????????????# = !!#????? | | ????????????????????# = !!#????? | | ????????????????????#== !!#????? | | ??????################"% "###???## | | ??????# ## #!!!##" "%###[[?# | | ??????# ## #!!!## " ##[[[# | | ??????# % | | ??????# % | | ??????# | | ??????#** ## #!!!## ##!!!# | | ??????#** ## #!!!### ###!!!# | | ??????### ##########?# #?#?#### | | ???????# !==########?! !!?????? | | ???????# ! / H?! !!#????? | | ???????# ! ###]]###?! !!#????? | | ???????## s###????????# ###????? | | ???????#= ss=#??????#?? ??????? | | ???????#= s==#??????# ? ??????? | | ???????## ###??????? ###### | | ??????### ##?????????# ### #! | | ??????#""@ x#???#===### ### #! | | ????""""" | | ????"##""< | | ??????#"""""##==#===#**!!! # # | | ??????#"""""#??##???#**!!! ###### | | ??????####"##???????#######??????? | | ??????????"#?????????????????????? | | ??????????"#?????????????????????? | | ?????????????????????????????????? | | ?????????????????????????????????? | | ?????????????????????????????????? | | ?????????????????????????????????? | | ?????????????????????????????????? | | | | | | | | | | | | | | | | | | | | | | | | | +----------------------------------------------------+ Best States ------------- Heat Dissipation 45 Coolant Potential 130 Energy Generation 16 Energy Capacity 290 Matter Stores 300 Matter Capacity 300 Sight Range 16 Robot Scan Range 15 Terrain Scan Range 16 Terrain Scan Density 10 Armor Coverage 300 Evasion (%) 62 Recoil Reduction 4 Item Schematics ----------------- Huge Storage Unit | -9/Materials | Hacked Arm. Wheel | -9/Materials | Hacked Hvy. Armor Plating | -8/Materials | Hacked Robot Schematics ------------------ None Fabricated ------------ Nothing Repaired ---------- Lgt. Treads | 42% | -9/Materials Lgt. Treads | 61% | -9/Materials Studied --------- None Alien Tech Used ----------------- None Achievements -------------- None Challenges ------------ None Game ------ Seed LightningDisruptorFlakker Manual? 0 Play Time 00:52:10 Cumulative 129.1 hours Start 2026.08.04 @ 12:06:45 End 2026.08.04 @ 12:58:46 Sessions 1 Manual Loads 0 Difficulty Rogue Special Mode None Game No. 84 Rogue 84 Adventurer 0 Explorer 0 Win Type - Total 3 Types 2/0/0/1/0/0/0/0/0/0 Lore% 58 Gallery% 53 Achievement% 46 Wizard Run 0 Options --------- Layout 1 ASCII 0 Keyboard 0 Movement Mouse Keybinds 0 Fullscreen 1 Font 24/Smallcaps Map View 50x35 Zoom Use 0% Tactical HUD 1 Map Filters NONE Filters NONE Steam 1 RUN: 63fe9077-759f-4ac5-823c-dbe1ad833c99